fUST/lending_fUST_20251003
["ID","MTS","AMOUNT","RATE_DAILY","PERIOD"]
[388856452,1759429666609,-500.0,0.00019452,2]
[388856453,1759429666630,-693.2,0.00019452,2]
[388856454,1759429666651,-500.0,0.00019452,2]
[388856455,1759429666671,-500.0,0.00019452,2]
[388856456,1759429666690,-500.0,0.00019452,2]
[388856457,1759429666711,-201.36409561,0.00019452,2]
[388856458,1759429666731,-500.0,0.00019452,2]
[388856459,1759429666755,-589.03139838,0.00019452,2]
[388856460,1759429666776,-500.0,0.00019452,2]
[388856461,1759429666797,-500.0,0.00019452,2]
[388856462,1759429666824,-4420.03,0.00019452,2]
[388856463,1759429666846,-7174.42,0.00019452,2]
[388856464,1759429666867,-524.9,0.00019452,2]
[388856465,1759429666887,-500.0,0.00019452,2]
[388856466,1759429666907,-500.0,0.00019452,2]
[388856467,1759429666927,-500.0,0.00019452,2]
[388856468,1759429666948,-500.0,0.00019452,2]
[388856469,1759429666968,-500.0,0.00019452,2]
[388856470,1759429666988,-500.0,0.00019452,2]
[388856471,1759429667008,-500.0,0.00019452,2]
[388856472,1759429667028,-500.0,0.00019452,2]
[388856473,1759429667048,-3103.78,0.00019452,2]
[388856474,1759429667068,-353.87291591,0.00019452,2]
[388856475,1759429667088,-500.0,0.00019452,2]
[388856476,1759429667283,-500.0,0.00019452,2]
[388856477,1759429667306,-1180.24,0.00019452,2]
[388856478,1759429667327,-500.0,0.00019452,2]
[388856479,1759429667348,-500.0,0.00019452,2]
[388856480,1759429667368,-500.0,0.00019452,2]
[388856481,1759429667389,-1006.54,0.00019452,2]
[388856482,1759429667413,-1867.68,0.00019452,2]
[388856483,1759429667433,-500.0,0.00019452,2]
[388856484,1759429667455,-1078.31,0.00019452,2]
[388856485,1759429667476,-2663.37,0.00019452,2]
[388856486,1759429667496,-413.69990544,0.00019452,2]
[388856487,1759429667517,-500.0,0.00019452,2]
[388856488,1759429667539,-500.0,0.00019452,2]
[388856489,1759429667560,-876.29,0.00019452,2]
[388856490,1759429667580,-746.16,0.00019452,2]
[388856491,1759429667599,-500.0,0.00019452,2]
[388856492,1759429667620,-444.87879383,0.00019452,2]
[388856493,1759429667643,-1483.5,0.00019452,2]
[388856494,1759429667663,-500.0,0.00019452,2]
[388856495,1759429667684,-642.13,0.00019452,2]
[388856496,1759429667705,-500.0,0.00019452,2]
[388856497,1759429667725,-500.0,0.00019452,2]
[388856498,1759429667751,-629.23,0.00019452,2]
[388856499,1759429667771,-500.0,0.00019452,2]
[388856500,1759429667794,-500.0,0.00019473,2]
[388856501,1759429667815,-500.0,0.00019473,2]
[388856502,1759429667835,-500.0,0.00019473,2]
[388856503,1759429667857,-500.0,0.00019473,2]
[388856504,1759429667878,-500.0,0.00019473,2]
[388856505,1759429667898,-500.0,0.00019473,2]
[388856506,1759429667918,-500.0,0.00019473,2]
[388856507,1759429667938,-500.0,0.00019473,2]
[388856508,1759429667959,-500.0,0.00019473,2]
[388856509,1759429667983,-500.0,0.00019473,2]
[388856510,1759429668003,-500.0,0.00019473,2]
[388856511,1759429668024,-500.0,0.00019473,2]
[388856512,1759429668045,-500.0,0.00019473,2]
[388856513,1759429668065,-500.0,0.00019473,2]
[388856514,1759429668085,-500.0,0.00019473,2]
[388856515,1759429668107,-500.0,0.00019473,2]
[388856516,1759429668127,-500.0,0.00019473,2]
[388856517,1759429668147,-268.47350391,0.00019473,2]
[388856518,1759429668168,-500.0,0.00019473,2]
[388856519,1759429668189,-1000.0,0.00019543,2]
[388856520,1759429668211,-151.0,0.000196,2]
[388856521,1759429668232,-151.0,0.000197,2]
[388856522,1759429668255,-151.0,0.000197,2]
[388856523,1759429668275,-151.0,0.000197,2]
[388856524,1759429668295,-500.0,0.0001972,2]
[388856525,1759429668316,-546.17,0.0001972,2]
[388856526,1759429668337,-500.0,0.0001972,2]
[388856527,1759429668358,-465.35277729,0.0001972,2]
[388856528,1759429668380,-502.92524514,0.0001972,2]
[388856529,1759429668401,-911.17,0.0001972,2]
[388856530,1759429668423,-3432.03,0.0001972,2]
[388856531,1759429668445,-500.0,0.0001972,2]
[388856532,1759429668465,-748.4,0.0001972,2]
[388856533,1759429668486,-500.0,0.0001972,2]
[388856534,1759429668507,-500.0,0.0001972,2]
[388856535,1759429668528,-562.53,0.0001972,2]
[388856536,1759429668551,-659.01,0.0001972,2]
[388856537,1759429668572,-500.0,0.0001972,2]
[388856538,1759429668598,-2132.89,0.0001972,2]
[388856539,1759429668620,-500.0,0.0001972,2]
[388856540,1759429668641,-500.0,0.0001972,2]
[388856541,1759429668662,-1631.25,0.0001972,2]
[388856542,1759429668683,-1340.04,0.0001972,2]
[388856543,1759429668704,-2552.6,0.0001972,2]
[388856544,1759429668725,-1226.99,0.0001972,2]
[388856545,1759429668750,-505.24,0.0001972,2]
[388856546,1759429668770,-500.0,0.0001972,2]
[388856547,1759429668790,-1297.07,0.0001972,2]
[388856548,1759429668816,-4471.98,0.0001972,2]
[388856549,1759429668838,-1504.46,0.0001972,2]
[388856550,1759429668860,-1683.4,0.0001972,2]
[388856551,1759429668880,-500.0,0.0001972,2]
[388856552,1759429668901,-1554.48,0.0001972,2]
[388856553,1759429668922,-500.0,0.0001972,2]
[388856554,1759429668942,-831.95,0.0001972,2]
[388856555,1759429668962,-4466.69,0.0001972,2]
[388856556,1759429668983,-2889.29,0.0001972,2]
[388856557,1759429669006,-571.35,0.0001972,2]
[388856558,1759429669027,-500.0,0.0001972,2]
[388856559,1759429669047,-755.62,0.0001972,2]
[388856560,1759429669068,-500.0,0.0001972,2]
[388856561,1759429669089,-1691.8,0.0001972,2]
[388856562,1759429669112,-500.0,0.0001972,2]
[388856563,1759429669133,-500.0,0.0001972,2]
[388856564,1759429669154,-750.31,0.0001972,2]
[388856565,1759429669175,-892.47,0.0001972,2]
[388856566,1759429669198,-500.0,0.0001972,2]
[388856567,1759429669220,-2422.84,0.0001972,2]
[388856568,1759429669241,-459.99205877,0.0001972,2]
[388856569,1759429669261,-794.39,0.0001972,2]
[388856570,1759429669282,-1000.0,0.00019721,2]
[388856571,1759429669303,-1000.0,0.00019721,2]
[388856572,1759429669323,-151.0,0.00019721,2]
[388856573,1759429669343,-303.95210255,0.00019721,2]
[388856574,1759429669364,-500.0,0.00019726,2]
[388856575,1759429669385,-198.0,0.00019726,2]
[388856576,1759429669405,-151.0,0.00019726,2]
[388856577,1759429669425,-500.0,0.00019726,2]
[388856578,1759429669446,-483.0,0.00019726,2]
[388856579,1759429669466,-151.0,0.00019726,2]
[388856580,1759429669491,-500.0,0.00019726,2]
[388856581,1759429669512,-500.0,0.00019726,2]
[388856582,1759429669533,-151.0,0.00019726,2]
[388856583,1759429669555,-500.0,0.00019726,2]
[388856584,1759429669576,-500.0,0.00019726,2]
[388856585,1759429669596,-500.0,0.00019726,2]
[388856586,1759429669617,-657.19,0.00019726,2]
[388856587,1759429669637,-500.0,0.00019726,2]
[388856588,1759429669658,-500.0,0.00019726,2]
[388856589,1759429669679,-500.0,0.00019726,2]
[388856590,1759429669698,-500.0,0.00019726,2]
[388856591,1759429669719,-500.0,0.00019726,2]
[388856592,1759429669744,-500.0,0.00019726,2]
[388856593,1759429669766,-500.0,0.00019726,2]
[388856594,1759429669789,-500.0,0.00019726,2]
[388856595,1759429669810,-500.0,0.00019726,2]
[388856596,1759429669833,-500.0,0.00019726,2]
[388856597,1759429669854,-500.0,0.00019726,2]
[388856598,1759429669875,-500.0,0.00019726,2]
[388856599,1759429669896,-500.0,0.00019726,2]
[388856600,1759429669916,-500.0,0.00019726,2]
[388856601,1759429669936,-643.48213841,0.00019726,2]
[388856602,1759429669957,-500.0,0.00019726,2]
[388856603,1759429669977,-500.0,0.00019726,2]
[388856604,1759429669998,-285.41563003,0.00019726,2]
[388856605,1759429670024,-500.0,0.00019726,2]
[388856606,1759429670044,-500.0,0.00019726,2]
[388856607,1759429670064,-500.0,0.00019726,2]
[388856608,1759429670083,-500.0,0.00019726,2]
[388856609,1759429670104,-500.0,0.00019726,2]
[388856610,1759429670126,-478.97450689,0.00019726,2]
[388856611,1759429670148,-500.0,0.00019726,2]
[388856612,1759429670170,-500.0,0.00019726,2]
[388856613,1759429670193,-500.0,0.00019726,2]
[388856614,1759429670215,-500.0,0.00019726,2]
[388856615,1759429670237,-500.0,0.00019726,2]
[388856616,1759429670258,-558.49,0.00019726,2]
[388856617,1759429670278,-500.0,0.00019726,2]
[388856618,1759429670298,-1706.02,0.00019726,2]
[388856619,1759429670318,-500.0,0.00019726,2]
[388856620,1759429670339,-316.2646079,0.00019726,2]
[388856621,1759429670359,-428.26646763,0.00019726,2]
[388856622,1759429670379,-500.0,0.00019726,2]
[388856623,1759429670400,-825.14,0.00019726,2]
[388856624,1759429670421,-500.0,0.00019726,2]
[388856625,1759429670442,-500.0,0.00019726,2]
[388856626,1759429670463,-500.0,0.00019726,2]
[388856627,1759429670483,-500.0,0.00019726,2]
[388856628,1759429670504,-500.0,0.00019726,2]
[388856629,1759429670525,-500.0,0.00019726,2]
[388856630,1759429670545,-1488.69,0.00019726,2]
[388856631,1759429670567,-500.0,0.00019726,2]
[388856632,1759429670587,-500.0,0.00019726,2]
[388856633,1759429670609,-449.79716888,0.00019726,2]
[388856634,1759429670630,-500.0,0.00019726,2]
[388856635,1759429670650,-500.0,0.00019726,2]
[388856636,1759429670672,-442.43824422,0.00019726,2]
[388856637,1759429670694,-500.0,0.00019726,2]
[388856638,1759429670715,-500.0,0.00019726,2]
[388856639,1759429670740,-500.0,0.00019726,2]
[388856640,1759429670760,-470.11447334,0.00019726,2]
[388856641,1759429670780,-444.80513608,0.00019726,2]
[388856642,1759429670802,-259.26768239,0.00019726,2]
[388856643,1759429670824,-1292.97,0.00019726,2]
[388856644,1759429670844,-500.0,0.00019726,2]
[388856645,1759429670865,-500.0,0.00019726,2]
[388856646,1759429670887,-500.0,0.00019726,2]
[388856647,1759429670908,-500.0,0.00019726,2]
[388856648,1759429670928,-500.0,0.00019726,2]
[388856649,1759429670948,-500.0,0.00019726,2]
[388856650,1759429671145,-500.0,0.00019726,2]
[388856651,1759429671168,-500.0,0.00019726,2]
[388856652,1759429671189,-500.0,0.00019726,2]
[388856653,1759429671210,-500.0,0.00019726,2]
[388856654,1759429671230,-500.0,0.00019726,2]
[388856655,1759429671250,-423.04480528,0.00019726,2]
[388856656,1759429671273,-500.0,0.00019726,2]
[388856657,1759429671294,-500.0,0.00019726,2]
[388856658,1759429671313,-500.0,0.00019726,2]
[388856659,1759429671334,-811.1,0.00019726,2]
[388856660,1759429671354,-500.0,0.00019726,2]
[388856661,1759429671375,-500.0,0.00019726,2]
[388856662,1759429671396,-500.0,0.00019726,2]
[388856663,1759429671416,-500.0,0.00019726,2]
[388856664,1759429671437,-929.22,0.00019726,2]
[388856665,1759429671459,-500.0,0.00019726,2]
[388856666,1759429671479,-500.0,0.00019726,2]
[388856667,1759429671500,-500.0,0.00019726,2]
[388856668,1759429671521,-500.0,0.00019726,2]
[388856669,1759429671541,-500.0,0.00019726,2]
[388856670,1759429671561,-1009.87,0.00019726,2]
[388856671,1759429671581,-500.0,0.00019726,2]
[388856672,1759429671602,-500.0,0.00019726,2]
[388856673,1759429671623,-500.0,0.00019726,2]
[388856674,1759429671645,-637.97,0.00019726,2]
[388856675,1759429671667,-500.0,0.00019726,2]
[388856676,1759429671687,-500.0,0.00019726,2]
[388856677,1759429671707,-500.0,0.00019726,2]
[388856678,1759429671727,-844.58,0.00019726,2]
[388856679,1759429671751,-630.06,0.00019726,2]
[388856680,1759429671772,-551.88,0.00019726,2]
[388856681,1759429671794,-500.0,0.00019726,2]
[388856682,1759429671816,-500.0,0.00019726,2]
[388856683,1759429671836,-500.0,0.00019726,2]
[388856684,1759429671856,-500.0,0.00019726,2]
[388856685,1759429671878,-500.0,0.00019726,2]
[388856686,1759429671898,-500.0,0.00019726,2]
[388856687,1759429671917,-500.0,0.00019726,2]
[388856688,1759429671938,-500.0,0.00019726,2]
[388856689,1759429671958,-542.04,0.00019726,2]
[388856690,1759429671979,-1000.0,0.00019726,2]
[388856691,1759429671999,-500.0,0.00019726,2]
[388856692,1759429672020,-830.94,0.00019726,2]
[388856693,1759429672040,-500.0,0.00019726,2]
[388856694,1759429672060,-500.0,0.00019726,2]
[388856695,1759429672082,-1614.86,0.00019726,2]
[388856696,1759429672104,-500.0,0.00019726,2]
[388856697,1759429672127,-836.44,0.00019726,2]
[388856698,1759429672148,-500.0,0.00019726,2]
[388856699,1759429672169,-520.0,0.00019726,3]
[388856700,1759429672190,-500.0,0.00019726,2]
[388856701,1759429672211,-623.83,0.00019726,2]
[388856702,1759429672231,-533.7,0.00019726,2]
[388856703,1759429672251,-500.0,0.00019726,2]
[388856704,1759429672271,-651.0,0.00019726,2]
[388856705,1759429672290,-500.0,0.00019726,2]
[388856706,1759429672310,-500.0,0.00019726,2]
[388856707,1759429672331,-935.45,0.00019726,2]
[388856708,1759429672351,-500.0,0.00019726,2]
[388856709,1759429672376,-500.0,0.00019726,2]
[388856710,1759429672397,-500.0,0.00019726,2]
[388856711,1759429672420,-500.0,0.00019726,2]
[388856712,1759429672443,-654.86,0.00019726,2]
[388856713,1759429672465,-500.0,0.00019726,2]
[388856714,1759429672486,-656.28,0.00019726,2]
[388856715,1759429672507,-364.87413998,0.00019726,2]
[388856716,1759429672528,-1110.78,0.00019726,2]
[388856717,1759429672550,-500.0,0.00019726,2]
[388856718,1759429672572,-558.55,0.00019726,2]
[388856719,1759429672594,-587.09,0.00019726,2]
[388856720,1759429672616,-2838.41,0.00019726,2]
[388856721,1759429672638,-500.0,0.00019726,2]
[388856722,1759429672660,-500.0,0.00019726,2]
[388856723,1759429672683,-558.06,0.00019726,2]
[388856724,1759429672704,-999.87,0.00019726,2]
[388856725,1759429672725,-500.0,0.00019726,2]
[388856726,1759429672749,-500.0,0.00019726,2]
[388856727,1759429672770,-500.0,0.00019726,2]
[388856728,1759429672792,-500.0,0.00019726,2]
[388856729,1759429672814,-500.0,0.00019726,2]
[388856730,1759429672835,-500.0,0.00019726,2]
[388856731,1759429672857,-888.98,0.00019726,2]
[388856732,1759429672880,-640.26,0.00019726,2]
[388856733,1759429672901,-500.0,0.00019726,2]
[388856734,1759429672924,-602.87,0.00019726,2]
[388856735,1759429672945,-500.0,0.00019726,2]
[388856736,1759429672967,-500.0,0.00019726,2]
[388856737,1759429672990,-871.27,0.00019726,2]
[388856738,1759429673011,-631.61,0.00019726,2]
[388856739,1759429673037,-500.0,0.00019726,2]
[388856740,1759429673060,-500.0,0.00019726,2]
[388856741,1759429673084,-500.0,0.00019726,2]
[388856742,1759429673111,-2129.76,0.00019726,2]
[388856743,1759429673134,-500.0,0.00019726,2]
[388856744,1759429673156,-329.04396938,0.00019726,2]
[388856745,1759429673178,-500.0,0.00019726,2]
[388856746,1759429673200,-828.11,0.00019726,2]
[388856747,1759429673224,-649.41,0.00019726,2]
[388856748,1759429673245,-500.0,0.00019726,2]
[388856749,1759429673266,-500.0,0.00019726,2]
[388856750,1759429673287,-500.0,0.00019726,2]
[388856751,1759429673309,-500.0,0.00019726,2]
[388856752,1759429673332,-555.61,0.00019726,2]
[388856753,1759429673361,-500.0,0.00019726,2]
[388856754,1759429673387,-1012.07,0.00019726,2]
[388856755,1759429673411,-733.78,0.00019726,2]
[388856756,1759429673434,-637.3,0.00019726,2]
[388856757,1759429673461,-408.06354702,0.00019726,2]
[388856758,1759429673484,-653.1,0.00019726,2]
[388856759,1759429673507,-1170.65,0.00019726,2]
[388856760,1759429673528,-500.0,0.00019726,2]
[388856761,1759429673550,-560.26,0.00019726,2]
[388856762,1759429673571,-500.0,0.00019726,2]
[388856763,1759429673591,-500.0,0.00019726,2]
[388856764,1759429673614,-500.0,0.00019726,2]
[388856765,1759429673635,-500.0,0.00019726,2]
[388856766,1759429673660,-500.0,0.00019726,2]
[388856767,1759429673682,-421.89570656,0.00019726,2]
[388856768,1759429673704,-500.0,0.00019726,2]
[388856769,1759429673728,-500.0,0.00019726,2]
[388856770,1759429673753,-552.75,0.00019726,2]
[388856771,1759429673775,-500.0,0.00019726,2]
[388856772,1759429673797,-500.0,0.00019726,2]
[388856773,1759429673824,-500.0,0.00019726,2]
[388856774,1759429673847,-500.0,0.00019726,2]
[388856775,1759429673871,-500.0,0.00019726,2]
[388856776,1759429673892,-500.0,0.00019726,2]
[388856777,1759429673914,-500.0,0.00019726,2]
[388856778,1759429673936,-1072.48,0.00019726,2]
[388856779,1759429673959,-500.0,0.00019726,2]
[388856780,1759429673982,-500.0,0.00019726,2]
[388856781,1759429674005,-1307.79,0.00019726,2]
[388856782,1759429674031,-500.0,0.00019726,2]
[388856783,1759429674053,-646.21,0.00019726,2]
[388856784,1759429674073,-584.16,0.00019726,2]
[388856785,1759429674095,-500.0,0.00019726,2]
[388856786,1759429674117,-500.0,0.00019726,2]
[388856787,1759429674139,-1088.58,0.00019726,2]
[388856788,1759429674162,-500.0,0.00019726,2]
[388856789,1759429674184,-500.0,0.00019726,2]
[388856790,1759429674208,-1108.09,0.00019726,2]
[388856791,1759429674231,-918.06,0.00019726,2]
[388856792,1759429674252,-500.0,0.00019726,2]
[388856793,1759429674273,-500.0,0.00019726,2]
[388856794,1759429674293,-500.0,0.00019726,2]
[388856795,1759429674315,-500.0,0.00019726,2]
[388856796,1759429674338,-500.0,0.00019726,2]
[388856797,1759429674362,-531.96,0.00019726,2]
[388856798,1759429674389,-500.0,0.00019726,2]
[388856799,1759429674410,-500.0,0.00019726,2]
[388856800,1759429674432,-500.0,0.00019726,2]
[388856801,1759429674454,-1686.22,0.00019726,2]
[388856802,1759429674476,-2666.53,0.00019726,2]
[388856803,1759429674496,-500.0,0.00019726,2]
[388856804,1759429674519,-791.79,0.00019726,2]
[388856805,1759429674539,-424.44614265,0.00019726,2]
[388856806,1759429674560,-716.66,0.00019726,2]
[388856807,1759429674581,-500.0,0.00019726,2]
[388856808,1759429674603,-500.0,0.00019726,2]
[388856809,1759429674627,-500.0,0.00019726,2]
[388856810,1759429674649,-986.12,0.00019726,2]
[388856811,1759429674671,-1325.39,0.00019726,2]
[388856812,1759429674692,-500.0,0.00019726,2]
[388856813,1759429674714,-500.0,0.00019726,2]
[388856814,1759429674742,-1990.43,0.00019726,2]
[388856815,1759429674766,-500.0,0.00019726,2]
[388856816,1759429674790,-641.76,0.00019726,2]
[388856817,1759429674816,-707.46,0.00019726,2]
[388856818,1759429674837,-500.0,0.00019726,2]
[388856819,1759429674863,-530.89,0.00019726,2]
[388856820,1759429674883,-500.0,0.00019726,2]
[388856821,1759429674908,-675.41,0.00019726,2]
[388856822,1759429674929,-661.15,0.00019726,2]
[388856823,1759429674950,-500.0,0.00019726,2]
[388856824,1759429675143,-500.0,0.00019726,2]
[388856825,1759429675173,-500.0,0.00019726,2]
[388856826,1759429675195,-500.0,0.00019726,2]
[388856827,1759429675218,-500.0,0.00019726,2]
[388856828,1759429675240,-500.0,0.00019726,2]
[388856829,1759429675261,-500.0,0.00019726,2]
[388856830,1759429675283,-661.99,0.00019726,2]
[388856831,1759429675303,-1194.33,0.00019726,2]
[388856832,1759429675324,-463.06537407,0.00019726,2]
[388856833,1759429675345,-500.0,0.00019726,2]
[388856834,1759429675369,-1337.33,0.00019726,2]
[388856835,1759429675390,-500.0,0.00019726,2]
[388856836,1759429675410,-500.0,0.00019726,2]
[388856837,1759429675432,-500.0,0.00019726,2]
[388856838,1759429675452,-500.0,0.00019726,2]
[388856839,1759429675474,-500.0,0.00019726,2]
[388856840,1759429675495,-1324.15,0.00019726,2]
[388856841,1759429675517,-610.8,0.00019726,2]
[388856842,1759429675539,-500.0,0.00019726,2]
[388856843,1759429675560,-2138.59,0.00019726,2]
[388856844,1759429675582,-500.0,0.00019726,2]
[388856845,1759429675604,-500.0,0.00019726,2]
[388856846,1759429675627,-500.0,0.00019726,2]
[388856847,1759429675647,-500.0,0.00019726,2]
[388856848,1759429675669,-874.88,0.00019726,2]
[388856849,1759429675691,-423.52123033,0.00019726,2]
[388856850,1759429675712,-377.01359293,0.00019726,2]
[388856851,1759429675735,-500.0,0.00019726,2]
[388856852,1759429675758,-922.29,0.00019726,2]
[388856853,1759429675781,-500.0,0.00019726,2]
[388856854,1759429675802,-583.61,0.00019726,2]
[388856855,1759429675826,-500.0,0.00019726,2]
[388856856,1759429675847,-500.0,0.00019726,2]
[388856857,1759429675870,-500.0,0.00019726,2]
[388856858,1759429675892,-500.0,0.00019726,2]
[388856859,1759429675914,-2110.38,0.00019726,2]
[388856860,1759429675935,-500.0,0.00019726,2]
[388856861,1759429675957,-500.0,0.00019726,2]
[388856862,1759429675979,-500.0,0.00019726,2]
[388856863,1759429676000,-631.0,0.00019726,2]
[388856864,1759429676022,-1000.0,0.00019726,2]
[388856865,1759429676043,-834.46,0.00019726,2]
[388856866,1759429676065,-4443.71,0.00019726,2]
[388856867,1759429676086,-536.83826946,0.00019726,2]
[388856868,1759429676107,-500.0,0.00019726,2]
[388856869,1759429676131,-500.0,0.00019726,2]
[388856870,1759429676152,-463.64878607,0.00019726,2]
[388856871,1759429676176,-564.52,0.00019726,2]
[388856872,1759429676197,-1134.24,0.00019726,2]
[388856873,1759429676218,-500.0,0.00019726,2]
[388856874,1759429676239,-500.0,0.00019726,2]
[388856875,1759429676261,-629.75,0.00019726,2]
[388856876,1759429676282,-2426.82,0.00019726,2]
[388856877,1759429676304,-364.10806524,0.00019726,2]
[388856878,1759429676326,-500.0,0.00019726,2]
[388856879,1759429676348,-500.0,0.00019726,2]
[388856880,1759429676372,-500.0,0.00019726,2]
[388856881,1759429676393,-500.0,0.00019726,2]
[388856882,1759429676414,-500.0,0.00019726,2]
[388856883,1759429676435,-713.76,0.00019726,2]
[388856884,1759429676456,-500.0,0.00019726,2]
[388856885,1759429676478,-500.0,0.00019726,2]
[388856886,1759429676500,-997.58,0.00019726,2]
[388856887,1759429676522,-420.65498039,0.00019726,2]
[388856888,1759429676545,-1101.79,0.00019726,2]
[388856889,1759429676569,-2361.7,0.00019726,2]
[388856890,1759429676601,-713.95,0.00019726,2]
[388856891,1759429676624,-500.0,0.00019726,2]
[388856892,1759429676645,-1122.86,0.00019726,2]
[388856893,1759429676666,-935.58,0.00019726,2]
[388856894,1759429676688,-1193.5,0.00019726,2]
[388856895,1759429676711,-500.0,0.00019726,2]
[388856896,1759429676732,-967.15,0.00019726,2]
[388856897,1759429676757,-500.0,0.00019726,2]
[388856898,1759429676779,-500.0,0.00019726,2]
[388856899,1759429676803,-861.56,0.00019726,2]
[388856900,1759429676827,-500.0,0.00019726,2]
[388856901,1759429676849,-1094.44,0.00019726,2]
[388856902,1759429676873,-500.0,0.00019726,2]
[388856903,1759429676894,-500.0,0.00019726,2]
[388856904,1759429676914,-414.07587878,0.00019726,2]
[388856905,1759429676934,-512.93,0.00019726,2]
[388856906,1759429676954,-500.0,0.00019726,2]
[388856907,1759429676975,-500.0,0.00019726,2]
[388856908,1759429676996,-898.45,0.00019726,2]
[388856909,1759429677017,-514.66,0.00019726,2]
[388856910,1759429677038,-752.46,0.00019726,2]
[388856911,1759429677059,-500.0,0.00019726,2]
[388856912,1759429677081,-585.2,0.00019726,2]
[388856913,1759429677104,-500.0,0.00019726,2]
[388856914,1759429677127,-11732.21,0.00019726,2]
[388856915,1759429677147,-502.72,0.00019726,2]
[388856916,1759429677170,-799.86,0.00019726,2]
[388856917,1759429677190,-500.0,0.00019726,2]
[388856918,1759429677210,-1677.26,0.00019726,2]
[388856919,1759429677230,-512.5,0.00019726,2]
[388856920,1759429677250,-500.0,0.00019726,2]
[388856921,1759429677270,-1281.7,0.00019726,2]
[388856922,1759429677290,-564.90541551,0.00019726,2]
[388856923,1759429677311,-500.0,0.00019726,2]
[388856924,1759429677332,-500.0,0.00019726,2]
[388856925,1759429677352,-2668.22,0.00019726,2]
[388856926,1759429677374,-500.0,0.00019726,2]
[388856927,1759429677395,-500.0,0.00019726,2]
[388856928,1759429677415,-851.75,0.00019726,2]
[388856929,1759429677437,-705.81,0.00019726,2]
[388856930,1759429677459,-1035.67,0.00019726,2]
[388856931,1759429677486,-2046.7,0.00019726,2]
[388856932,1759429677508,-500.0,0.00019726,2]
[388856933,1759429677531,-838.32,0.00019726,2]
[388856934,1759429677552,-1425.25,0.00019726,2]
[388856935,1759429677573,-1664.82,0.00019726,2]
[388856936,1759429677595,-500.0,0.00019726,2]
[388856937,1759429677617,-6318.42,0.00019726,2]
[388856938,1759429677639,-500.0,0.00019726,2]
[388856939,1759429677660,-285.15156746,0.00019726,2]
[388856940,1759429677915,-235.62843254,0.00019726,2]
[388856941,1759429677934,-500.0,0.00019726,2]
[388856942,1759429677953,-952.61,0.00019726,2]
[388856943,1759429677972,-405.35854352,0.00019726,2]
[388856944,1759429677993,-500.0,0.00019726,2]
[388856945,1759429678012,-506.38546328,0.00019726,2]
[388856946,1759429678031,-500.0,0.00019726,2]
[388856947,1759429678051,-3576.8,0.00019726,2]
[388856948,1759429678069,-591.85,0.00019726,2]
[388856949,1759429678088,-1424.69,0.00019726,2]
[388856950,1759429678108,-500.0,0.00019726,2]
[388856951,1759429678128,-467.58227074,0.00019726,2]